Cogmind - Beta 14 @@@ ROGUE MODE // 2024.10.31 @ 13:08:31 Player: Xellophane Result: Destroyed by G-47 Trooper with Particle Gun Performance ------------- Evolutions (1) 500 Regions Visited (2) 400 Robots Destroyed (61) 305 Value Destroyed (1376) 1376 Prototype IDs (2) 40 Alien Tech Used (0) 0 Bonus (35) 35 TOTAL SCORE: 2656 Bonus ------- High Alert Combat Kills 35 Cogmind --------- Core Integrity 0/400 Matter 132/300 Energy 100/100 System Corruption 0% Temperature Cool (11) Movement Core (1400) Ox27 Location -9/Materials Parts ------- > --- POWER (1) -------- (None) > --- PROPULSION (3) --- (None) > --- UTILITY (3) ------ Huge Storage Unit Signal Interpreter Improved Targeting Computer > --- WEAPON (2) ------- Grenade Launcher > --- INVENTORY (25) --- Deuterium Engine Deuterium Engine Flight Unit Flight Unit Flight Unit Cooling System Cooling System Huge Storage Unit Weight Redist. System Advanced Visual Processing Unit Advanced Visual Processing Unit Improved Sensor Array Improved Sensor Array Targeting Computer ECM Suite Medium Armor Plating Improved Light Armor Plating Improved Light Armor Plating Grenade Launcher Mining Laser Peak State ------------ > --- POWER ------------ Light Ion Engine > --- PROPULSION ------- Light Treads Light Treads Light Treads > --- UTILITY ---------- Huge Storage Unit Signal Interpreter Improved Targeting Computer > --- WEAPON ----------- Heavy Assault Rifle Heavy Assault Rifle > --- INVENTORY -------- Deuterium Engine Deuterium Engine Flight Unit Flight Unit Flight Unit Flight Unit Flight Unit Flight Unit Cooling System Cooling System Huge Storage Unit Weight Redist. System Advanced Visual Processing Unit Advanced Visual Processing Unit Improved Sensor Array Improved Sensor Array Targeting Computer ECM Suite Medium Armor Plating Medium Armor Plating Particle Cannon Grenade Launcher Grenade Launcher Grenade Launcher Mining Laser [Rating: 16] Favorites ----------- Power Ion Engine Engine Ion Engine Propulsion Light Treads Treads Light Treads Flight Unit Flight Unit Utility Huge Storage Unit Device Seismic Detector Storage Huge Storage Unit Processor Targeting Computer Weapon Heavy Assault Rifle Energy Gun Small Laser Ballistic Gun Heavy Assault Rifle Launcher Grenade Launcher Build | -11 -10 -9 ------- Run | Yrd Mat Mat Slots Evolved 2 | . . 2 Power . | . . . Propulsion 1 | . . 1 Utility 1 | . . 1 Weapon . | . . . Parts Attached 44 | 7 7 30 Power 4 | 1 . 3 Engine 4 | 1 . 3 Core . | . . . Reactor . | . . . Propulsion 17 | 2 2 13 Treads 14 | 2 2 10 Leg . | . . . Wheel . | . . . Hover . | . . . Flight 3 | . . 3 Utility 6 | 2 2 2 Device 1 | 1 . . Storage 2 | 1 1 . Processor 3 | . 1 2 Hackware . | . . . Protection . | . . . Artifact . | . . . Weapon 17 | 2 3 12 Energy Gun 2 | 1 1 . Energy Cannon . | . . . Ballistic Gun 12 | 1 2 9 Ballistic Cannon . | . . . Launcher 3 | . . 3 Special Weapon . | . . . Impact Weapon . | . . . Slashing Weapon . | . . . Piercing Weapon . | . . . Special Melee Weapon . | . . . Unidentified Prototypes . | . . . Parts Lost 22 | . . 22 Power 3 | . . 3 Propulsion 11 | . . 11 Utility . | . . . Weapon 8 | . . 8 Highest Loss Streak 6 | . . 6 To Critical Strikes 2 | . . 2 Average Slot Usage (%) 94 | . 99 91 Engine 9 | . 14 5 Treads 29 | . 27 30 Storage 12 | . 14 11 Processor 17 | . 12 22 Ballistic Gun 23 | . 27 20 Peak Build Rating 16 | 7 11 16 Average Rating 11 | 5 9 13 On Entrance 6 | . 7 11 Naked Turns . | . . . Heaviest Build 91 | 13 91 91 Greatest Support 63 | 40 40 63 Greatest Overweight (x) 27 | 1 4 27 Average Overweight (x) 1 | . 1 1 Largest Inventory Capacity 25 | 8 25 25 Average Capacity 23 | 6 22 25 Most Carried 25 | 8 17 25 Average Carried 16 | 3 10 21 Final Capacity 25 | 8 25 25 Final Carried 20 | 8 17 20 Class Distribution -------------------- 89% | Mutant 10% | Scavenger-Mutant Dominant Class ---------------- Mutant | -10/Materials Mutant | -9/Materials Resources | -11 -10 -9 ----------- Run | Yrd Mat Mat Matter Collected 1258 | 188 420 650 Remotely . | . . . Salvage Created 2006 | 173 569 1264 Parts 131 | 13 38 80 Haulers Intercepted 1 | . 1 . Recyclers Shooed . | . . . Parts Field Recycled . | . . . Retrieved Matter . | . . . Parts Self-Destructed . | . . . Prevented . | . . . Kills | -11 -10 -9 ------- Run | Yrd Mat Mat Combat Hostiles Destroyed 44 | . 15 29 Guns 39 | . 15 24 AOE 5 | . . 5 Classes Destroyed 11 | 3 3 5 Worker 6 | 2 3 1 Builder 1 | . . 1 Tunneler 3 | 3 . . Hauler 1 | . 1 . Recycler 4 | 1 1 2 Operator 1 | . . 1 Watcher 1 | . . 1 Swarmer 17 | . 9 8 Grunt 17 | . 6 11 Duelist 1 | . . 1 Sentry 9 | . . 9 Best Kill Streak 4 | 2 4 4 Combat Bots Only 4 | . 3 4 Max Kills in Single Turn 2 | 1 2 2 Gunslinging . | . . . Exploded 1 | . . 1 Melee . | . . . Uniques/NPCs Destroyed . | . . . Combat | -11 -10 -9 -------- Run | Yrd Mat Mat Hostile Shots Fired 314 | . 91 223 Missed 90 | . 20 70 Damage Taken 2863 | . 635 2228 Core 500 | . 95 405 Absorbed by Shields . | . . . Regen/Repaired (Parts) 268 | . 268 . Core Remaining (%) 81 | 100 62 . Volleys Fired 168 | 16 42 110 Largest 2 | 2 2 2 Hottest 60 | 60 46 53 Shots Fired 295 | 32 84 179 Gun 282 | 32 84 166 Cannon . | . . . Launcher 13 | . . 13 Special . | . . . Kinetic 266 | 16 84 166 Thermal 16 | 16 . . Explosive 13 | . . 13 Electromagnetic . | . . . Robot Hit Streak 15 | 7 8 15 Robot Miss Streak 5 | 4 3 5 Penetration Max . | . . . Secondary Targets 5 | . 3 2 Max Gunslinging Chain 1 | . 1 1 Shots Hit Robots 200 | 20 49 131 Core Hits 93 | 9 23 61 Critical Kills . | . . . Critical Parts Destroyed 1 | . . 1 Critical Strikes 1 | . . 1 Destroy 1 | . . 1 Melee Attacks . | . . . Impact . | . . . Slashing . | . . . Piercing . | . . . Sneak Attacks . | . . . Combat Hostiles . | . . . Follow-up Attacks . | . . . Damage Inflicted 3708 | 198 806 2704 Guns 2878 | 198 800 1880 Cannons . | . . . Explosions 824 | . . 824 Melee . | . . . Ramming 6 | . 6 . Kinetic 2749 | 69 800 1880 Thermal 224 | 129 . 95 Explosive 630 | . . 630 Electromagnetic 99 | . . 99 Impact . | . . . Slashing . | . . . Piercing . | . . . Highest Corruption . | . . . Average Corruption . | . . . Corruption Purged . | . . . Corruption Blocked . | . . . Overload Shots . | . . . Overflow Damage 163 | . . 163 Projectiles . | . . . Explosions 163 | . . 163 Melee . | . . . Knockbacks . | . . . Impact . | . . . Kinetic . | . . . Secondary . | . . . Self-Inflicted Damage 349 | . . 349 Shots 7 | . . 7 Rammed 1 | . 1 . Targets Rammed 1 | . 1 . Kicked . | . . . Crushed . | . . . Highest Temperature 60 | 60 22 19 Average Temperature 19 | 28 7 7 Received Heat Transfer 813 | . 120 693 Siege Activations . | . . . Robots Corrupted . | . . . Combat Hostiles . | . . . Parts Fried . | . . . Impact Corruptions . | . . . Robots Melted . | . . . Combat Hostiles . | . . . Parts Melted . | . . . Heat Transferred 350 | 300 . 50 Parts Sabotaged . | . . . Parts Stolen . | . . . Parts Stripped . | . . . Power Chain Reactions . | . . . Alert | -11 -10 -9 ------- Run | Yrd Mat Mat Peak Influence 524 | 30 146 524 Initial 19 | . 19 . Average 108 | 11 47 160 Maximum Alert Level 2 | . . 2 Low Security (%) 81 | 100 100 65 Level 1 14 | . . 26 Level 2 4 | . . 8 Level 3 . | . . . Level 4 . | . . . Level 5 . | . . . High Security . | . . . Max Security . | . . . Squads Dispatched 6 | . 2 4 Investigation 3 | . 1 2 Extermination . | . . . Reinforcement 3 | . 1 2 Assault . | . . . Garrison . | . . . Intercept . | . . . Searches Triggered . | . . . Construction Impeded . | . . . Haulers Reinforced . | . . . Active Scanning Responses . | . . . Cargo Convoy Interrupts . | . . . Stealth | -11 -10 -9 --------- Run | Yrd Mat Mat Distress Signals 4 | . 2 2 Communications Jammed . | . . . Distress Signals . | . . . Times Spotted 91 | . 31 60 Peak Tracking Total 7 | . 6 7 Tactical Retreats 5 | . 1 4 Traps | -11 -10 -9 ------- Run | Yrd Mat Mat Traps Triggered 5 | . 1 4 Indirectly . | . . . Trap Hack Attempts . | . . . Triggered . | . . . Disarmed . | . . . Reprogrammed . | . . . Reused . | . . . Traps Extracted . | . . . Installed . | . . . Triggered . | . . . Machines | -11 -10 -9 ---------- Run | Yrd Mat Mat Machines Disabled 6 | . 1 5 Max in Single Turn 3 | . 1 3 Machines Repaired . | . . . Machines Dismantled . | . . . Machines Sabotaged . | . . . Overloaded Fab Kills . | . . . Hacking | -11 -10 -9 --------- Run | Yrd Mat Mat Machines Accessed 9 | . 5 4 Terminals 7 | . 4 3 Fabricators . | . . . Repair Stations 1 | . 1 . Recycling Units 1 | . . 1 Scanalyzers . | . . . Garrison Access . | . . . Total Hacks 26 | . 16 10 Successful 16 | . 10 6 Failed 10 | . 6 4 Catastrophic . | . . . Database Lockouts . | . . . Manual 2 | . . 2 Terminals 19 | . 10 9 Fabricators . | . . . Repair Stations 6 | . 6 . Recycling Units 1 | . . 1 Scanalyzers . | . . . Garrison Access . | . . . Terminal Hacks 11 | . 6 5 Record 3 | . . 3 Prototype ID Bank 1 | . 1 . Scanalyzer Index 1 | . 1 . Locate Traps 2 | . 2 . Dispatch Records 1 | . . 1 Transport Status 1 | . 1 . Zone Layout 2 | . 1 1 Fabricator Hacks . | . . . Repair Station Hacks 4 | . 4 . Scan Component 2 | . 2 . Repair 2 | . 2 . Recycling Unit Hacks 1 | . . 1 Report Inventory 1 | . . 1 Scanalyzer . | . . . Garrison Access Hacks . | . . . Unauthorized Hacks . | . . . Terminals . | . . . Fabricators . | . . . Repair Stations . | . . . Recycling Units . | . . . Scanalyzers . | . . . Garrison Access . | . . . Data Cores Recovered . | . . . Used . | . . . Hacking Detections 5 | . 2 3 Full Trace Events 2 | . . 2 Feedback Events . | . . . Feedback Blocked . | . . . Robot Schematics Acquired . | . . . Robots Built . | . . . Authchips . | . . . Time . | . . . Total Robot Build Rating . | . . . Part Schematics Acquired . | . . . Parts Built . | . . . Authchips . | . . . Time . | . . . Total Part Build Rating . | . . . Parts Repaired 2 | . 2 . Time 52 | . 52 . Parts Recycled . | . . . Recycled Matter . | . . . Retrieved Matter . | . . . Retrieved Components . | . . . Parts Scanalyzed . | . . . Part Schematics Acquired . | . . . Parts Damaged . | . . . Bothacking | -11 -10 -9 ------------ Run | Yrd Mat Mat Used RIF Installer . | . . . Robots Hacked . | . . . Non-combat . | . . . Combat . | . . . Robot Hacks Applied . | . . . Relay Couplers Released . | . . . Fabnet Peak Effective % . | . . . Robots Rewired . | . . . Allies Hacked . | . . . Hacks Repelled . | . . . Allies | -11 -10 -9 -------- Run | Yrd Mat Mat Total Allies . | . . . Largest Group . | . . . Highest-Rated Group . | . . . Highest-Rated Ally . | . . . Total Orders . | . . . Ally Attacks . | . . . Total Damage . | . . . Kills . | . . . Allies Corrupted . | . . . Allies Melted . | . . . Intel | -11 -10 -9 ------- Run | Yrd Mat Mat Robot Analysis Total . | . . . Derelict Logs Recovered . | . . . Drone Launches . | . . . Drone Recoveries . | . . . Exploration | -11 -10 -9 ------------- Run | Yrd Mat Mat Turns Passed 5418 | 126 2327 2965 Spaces Moved 1839 | 43 768 1028 Core 11 | 6 . 5 Treads 1818 | 37 768 1013 Legs . | . . . Wheels . | . . . Hover . | . . . Flight 10 | . . 10 Fastest Speed 50 | 50 160 240 Average Speed 262 | 148 281 252 Slowest Speed 1400 | 160 480 1400 Overloaded Moves . | . . . Propulsion Burnouts . | . . . Robots Hopped . | . . . Cave-ins Triggered . | . . . Exploration Rate (%) 58 | 4 83 87 Regions Visited 2 Branch Regions . Pre-discovered Areas . | . . . Known Exits Taken . | . . . Unknown Exits Taken 2 | 1 1 . Scrap Searched . | . . . Spaces Dug . | . . . Terrain Destroyed 84 | . . 84 Melee . | . . . Projectile . | . . . AOE 84 | . . 84 Terrain Rammed . | . . . Walls Destroyed . | . . . Machines Disabled . | . . . Actions | -11 -10 -9 --------- Run | Yrd Mat Mat Total 2148 | 74 854 1220 Wait 20 | . 12 8 Move 1837 | 42 767 1028 Hop . | . . . Pick Up 54 | 9 15 30 Fast Attach 19 | 6 4 9 Attach 17 | 1 . 16 Detach 2 | . 1 1 Swap 8 | . 3 5 Drop 22 | . 9 13 Fire 168 | 16 42 110 Melee . | . . . Ram . | . . . Kick . | . . . Crush 1 | . 1 . Escape Stasis . | . . . Rewire . | . . . Trap . | . . . Miscellaneous . | . . . Route ------- -11/Scrapyard -10/Materials (discovered 4 exits: *Mat x2 / [*Min x2]) -9/Materials (discovered 6 exits: *Mat x3 / *Min / *Sto x2) History --------- Turn | Location | Event 10 | -11/Scrapyard | Discovered new exit (range 16) 127 | -11/Scrapyard | Entered Materials 311 | -10/Materials | Build established: Mutant 335 | -10/Materials | Discovered new exit (range 15) 512 | -10/Materials | Discovered new exit (range 11) 766 | -10/Materials | Discovered new exit (range 16) 1132 | -10/Materials | Discovered new exit (range 7) 1370 | -10/Materials | Repaired Lgt. Treads 1410 | -10/Materials | Repaired Lgt. Treads 2454 | -10/Materials | Entered another Materials area 2454 | -9/Materials | Evolved 2 slots: Propulsion x1, Utility x1 2703 | -9/Materials | Discovered new exit (range 8) 2720 | -9/Materials | Identified exit to Storage 2739 | -9/Materials | Discovered new exit (range 15) 2799 | -9/Materials | Identified exit to Materials 2987 | -9/Materials | Lost 3 parts (1p2w) 3035 | -9/Materials | Discovered new exit (range 5) 3045 | -9/Materials | Identified exit to Mines 3814 | -9/Materials | Discovered exit to Materials (range 11) 3949 | -9/Materials | Discovered exit to Storage (range 15) 4120 | -9/Materials | Discovered exit to Materials (range 16) 4561 | -9/Materials | Core integrity fell below 50% 5117 | -9/Materials | Lost 3 parts (1p1n1w) 5299 | -9/Materials | Lost 4 parts (3n1w) 5393 | -9/Materials | Core integrity fell below 20% 5419 | -9/Materials | Destroyed by G-47 Trooper with Particle Gun Last Messages --------------- 05406_ W-16 Scout destroyed. 05407_ U-05 Engineer lays Concrete. 05408_ U-05 Engineer builds a Wall. 05409_ R-06 Scavenger destroyed. 05409_ K-01 Serf collects debris. 05410_ Ion Engine destroyed. 05410_ Destroyed Ion Engine. 05411_ U-05 Engineer lays Concrete. 05413_ K-01 Serf collects debris. 05413_ Flight Unit destroyed. 05413_ U-05 Engineer lays Concrete. 05414_ U-05 Engineer builds a Wall. 05415_ U-05 Engineer destroyed. 05416_ K-01 Serf collects debris. 05417_ Flight Unit destroyed. 05417_ Critical hit (Burn: +37). 05418_ U-05 Engineer builds a Wall. 05418_ Flight Unit destroyed. 05418_ Destroyed Flight Unit. 05418_ U-05 Engineer destroyed. Map ----- +----------------------------------------------------+ | | | | | | | | | | | | | | | | | #######??????????????????????????????????????????? | | ?????????????????????????????????????????? | | "S #??????? ???###########?????????????????? | | """ #???????? ??# #?????????????????? | | "" """ #????????"""?# ##????????????????? | | """ #??????# """ # "#????????????????? | | """ #####??# """ " "##???????????????? | | ## #### " " #???????????????? | | # # """ " ##???????????????? | | ###+##### # """ " #???????????????? | | % # """ " #???????????????? | | = + ## ##+#########?????????????? | | # # " #=!k# [#?????????????? | | # # " #%%*+ % #??##+###+##### | | # ########### #=!!# #### | | ###+#????# ####u%k/ u ! #??? | | ##### #????????# < ## #|%! #### #### #??? | | #??# #?# ??# ## @!= ! ####+#### #??? | | #??# #?# / ## ###### # ##?? | | #??# #????????# g #???# """ # ## ? | | #??# #????????# #??# """ # + ? | | #??# #????????# a #??# """ ! + ## ? | | #?## ##???????# ## #??# # ## | | #### ######### ## #??######### ## | | k ##[[!! #?????????# ##+ | | ##[[!!!!####?????????# ! | | % ###########??????????# | | #### ######### #????#### #####??????# ^ | | ##########??????## ###### #??????# | | #???????????# # """ #??????# | | #???????????# # """ #??????# " | | #???????????# # """ !! #??????# ^ " | | " #???????????# # + !! #??????# ^ " | | " #???????????# # # #??????# " | | " #???????????####### # #??????+ | | #??????????######## # "Y" [ #??????# | | #??????????# ^ =% # """ #??????# | | #####??????????+ ^ ##########??????##+##### | | #####??????????# #??????????????????????? | | #??????????### #### #??????????????????????? | | #????????????# #??# % #??????????????????????? | | #????????????# #??# #???##??#######????????? | +----------------------------------------------------+ Best States ------------- Heat Dissipation 28 Energy Generation 10 Energy Capacity 250 Matter Stores 300 Matter Capacity 300 Sight Range 16 Terrain Scan Density 10 Evasion (%) 40 Targeting Accuracy 6 Recoil Reduction 3 Item Schematics ----------------- None Robot Schematics ------------------ None Fabricated ------------ Nothing Alien Tech Used ----------------- None Achievements -------------- None Challenges ------------ None Game ------ Seed ActivePitchforkTearclaws Manual? 0 Play Time 00:45:54 Cumulative 4.1 hours Start 2024.10.31 @ 11:54:07 End 2024.10.31 @ 13:08:31 Sessions 1 Manual Loads 0 Difficulty Rogue Special Mode None Game No. 7 Rogue 7 Adventurer 0 Explorer 0 Win Type - Total 0 Types 0/0/0/0/0/0/0/0/0 Lore% 1 Gallery% 5 Achievement% 6 Wizard Run 0 Options --------- Layout 0 ASCII 0 Keyboard 1 Movement Numpad Keybinds 0 Fullscreen 2 Font 18/SmallcapsGlow Map View 76x50 Zoom Use 0% Tactical HUD 1 Map Filters NONE Filters NONE Steam 1 RUN: 88b080e3-fa4d-43bd-816c-4f03db6ad80f